bitfinex-derivatives/quotes_ETHF0:USTF0_20251013
["timestamp","ask_amount","ask_price","bid_price","bid_amount"]
[1760332370616,0.428,4130.8,4130.7,3.2078]
[1760332370806,0.6478,4130.8,4130.7,3.2078]
[1760332371709,1.08325,4130.7,4130.6,0.00279481]
[1760332372102,4.28904651,4130.7,4130.6,0.00279481]
[1760332372304,1.08867,4130.6,4129.5,2.16941053]
[1760332372502,0.645,4129.6,4129.4,3.2078]
[1760332372713,0.645,4129.5,4129.4,3.2078]
[1760332372908,0.645,4129.5,4129.0,0.445]
[1760332373116,0.645,4129.1,4129.0,0.3153]
[1760332373308,0.03480363,4129.1,4129.0,0.445]
[1760332373510,0.03779969,4129.1,4129.0,0.44700609]
[1760332373705,0.03779969,4129.1,4129.0,0.13170609]
[1760332374813,0.03779969,4129.1,4129.0,0.44700609]
[1760332375915,0.03779969,4129.1,4129.0,0.66850609]
[1760332376714,0.00299606,4129.1,4129.0,0.89240609]
[1760332380317,0.43861606,4129.1,4129.0,0.00200609]
[1760332381113,3.60918684,4129.1,4129.0,0.00200609]
[1760332381316,0.4357,4128.4,4128.2,0.3153]
[1760332382404,0.43568,4128.6,4128.2,0.31709108]
[1760332382718,0.43567,4128.7,4128.5,0.1297]
[1760332383017,0.43565,4128.9,4128.6,0.3153]
[1760332383316,3.1207793,4128.8,4128.5,0.78688]
[1760332383610,3.1207793,4128.8,4128.7,0.3153]
[1760332386217,0.00299606,4129.1,4128.8,0.3153]
[1760332386613,3.14617165,4129.0,4128.7,0.43566]
[1760332386812,3.14617165,4129.0,4128.9,0.3153]
[1760332387814,3.58181165,4129.0,4128.9,0.3153]
[1760332388518,6.78961165,4129.0,4128.9,0.3153]
[1760332390212,3.2078,4129.0,4128.9,0.7607]
[1760332390915,3.2078,4129.0,4128.9,0.3153]
[1760332391120,3.2078,4129.0,4128.6,0.3153]
[1760332391315,0.43566,4128.8,4128.6,0.3153]
[1760332392118,0.43567,4128.7,4128.6,0.3153]
[1760332394426,3.2078,4129.0,4128.2,0.31709108]
[1760332394427,0.4357,4128.3,4128.2,0.31709108]
[1760332395319,0.43569,4128.5,4128.2,0.53859108]
[1760332395520,3.64343,4129.0,4128.9,0.3153]
[1760332396023,0.43567,4128.6,4128.5,0.1297]
[1760332396620,0.43566,4128.8,4128.5,1.12027]
[1760332396821,0.43567,4128.7,4128.6,0.3334]
[1760332397326,0.43567,4128.7,4128.6,0.5598]
[1760332397624,0.43567,4128.7,4128.6,0.7716]
[1760332398020,3.2078,4129.0,4128.8,0.43564]
[1760332398221,3.2078,4129.0,4128.9,0.7716]
[1760332402320,0.00299606,4129.1,4129.0,0.43563]
[1760332402530,0.00299606,4129.1,4129.0,1.34383]
[1760332402726,3.2078,4129.6,4129.5,0.43558]
[1760332403025,3.2078,4129.6,4129.5,1.34378]
[1760332403827,3.21053208,4129.6,4129.5,1.34378]
[1760332404728,6.20934284,4131.3,4130.4,0.4382]
[1760332404729,3.2078,4130.5,4130.4,0.4382]
[1760332404929,3.2078,4130.5,4130.4,0.7716]
[1760332405830,3.21010753,4130.5,4130.4,0.7716]
[1760332406027,3.21010753,4130.5,4130.4,0.3334]
[1760332408139,3.21010753,4130.5,4130.4,0.5598]
[1760332409534,3.21010753,4130.5,4130.4,0.3334]
[1760332410130,3.21010753,4130.5,4130.4,0.7716]
[1760332411034,0.00230753,4130.5,4130.4,0.7716]
[1760332417636,4.92267126,4132.1,4130.3,0.43549]
[1760332417637,3.2078,4131.2,4131.1,0.2264]
[1760332417836,3.2078,4131.2,4131.1,0.3334]
[1760332418037,0.43546,4130.6,4130.5,0.47]
[1760332418340,0.43546,4130.6,4130.5,0.6964]
[1760332418741,0.43840045,4130.6,4130.5,0.69812226]
[1760332418939,0.43840045,4130.6,4130.5,0.90992226]
[1760332420341,0.43840045,4130.6,4130.5,0.00172226]
[1760332420539,0.43840045,4130.6,4130.5,0.47172226]
[1760332422947,0.43840045,4130.6,4130.5,0.13832226]
[1760332423147,0.43840045,4130.6,4130.5,0.47172226]
[1760332426848,0.43840045,4130.6,4130.5,0.92312226]
[1760332427348,0.43840045,4130.6,4130.5,0.69812226]
[1760332427838,0.43840045,4130.6,4130.5,0.47172226]
[1760332428744,0.43840045,4130.6,4130.5,2.25832825]
[1760332428939,0.00294045,4130.6,4130.5,2.25832825]
[1760332429140,3.2078,4131.2,4131.0,0.43541]
[1760332429351,3.2078,4131.2,4131.1,0.7827]
[1760332430245,3.21059561,4131.2,4131.1,0.7827]
[1760332433753,3.21059561,4131.2,4131.1,0.5577]
[1760332434352,3.21059561,4131.2,4131.1,0.7827]
[1760332436748,3.21059561,4131.2,4131.1,1.21811]
[1760332437049,0.00279561,4131.2,4131.1,1.21811]
[1760332437348,1.08824,4132.3,4131.0,0.1389]
[1760332437349,3.2078,4132.3,4132.2,0.7827]
[1760332438147,3.21040093,4132.3,4132.2,0.7827]
[1760332438339,3.2078,4133.7,4133.5,0.1389]
[1760332438544,3.64294,4133.7,4133.6,0.5577]
[1760332439345,3.64499797,4133.7,4133.6,0.56055938]
[1760332440556,3.64499797,4133.7,4133.6,0.78555938]
[1760332440763,3.20985797,4133.7,4133.6,0.78555938]
[1760332441053,3.20985797,4133.7,4133.6,1.22070938]
[1760332442555,0.00205797,4133.7,4133.6,1.22070938]
[1760332442853,0.00205797,4133.7,4133.6,0.78555938]
[1760332443247,3.20985797,4133.7,4133.6,0.78555938]
[1760332444454,3.20985797,4133.7,4133.6,0.33925938]
[1760332444645,3.20985797,4133.7,4133.6,0.56055938]
[1760332445254,3.20985797,4133.7,4133.6,0.78555938]
[1760332446359,3.20985797,4133.7,4133.6,0.33925938]
[1760332447661,3.20985797,4133.7,4133.6,0.56055938]
[1760332448559,3.20985797,4133.7,4133.6,0.33925938]
[1760332449056,3.20985797,4133.7,4133.6,0.78555938]
[1760332450261,3.20985797,4133.7,4133.6,1.22070938]
[1760332450458,0.00205797,4133.7,4133.6,1.22070938]
[1760332454154,0.00205797,4133.7,4133.6,0.78555938]
[1760332456559,3.2078,4134.3,4133.6,0.78555938]
[1760332456760,3.2078,4134.3,4134.2,0.7651]
[1760332456965,0.43504,4134.7,4134.6,0.7651]
[1760332457165,3.2078,4134.8,4134.6,0.4384]
[1760332457365,3.2078,4134.8,4134.7,0.7651]
[1760332457765,3.21027892,4134.8,4134.7,0.7651]
[1760332465964,3.21027892,4134.8,4134.7,0.3267]
[1760332466369,0.43503,4134.7,4134.5,0.454]
[1760332466569,0.43503,4134.7,4134.6,0.3267]
[1760332466870,0.43503,4134.7,4134.5,0.1273]
[1760332467372,0.61397392,4134.6,4134.5,0.454]
[1760332467572,0.61397392,4134.6,4134.0,3.3351]
[1760332467573,0.43509,4134.1,4134.0,3.3351]
[1760332468074,0.43509,4134.1,4134.0,3.6618]
[1760332468974,1.08776,4134.1,4133.6,0.32955938]
[1760332469175,3.2078,4133.7,4133.6,0.32955938]
[1760332469368,4.25751894,4133.7,4133.6,0.32955938]
[1760332469567,4.25751894,4133.7,4133.6,0.00285938]
[1760332470275,0.4352,4133.1,4132.9,3.2078]
[1760332470672,0.4352,4133.1,4132.9,0.3267]
[1760332470872,0.61437883,4133.0,4132.9,0.3267]
[1760332471377,0.4352,4133.1,4133.0,0.454]
[1760332472471,3.2078,4133.2,4133.0,0.454]
[1760332472472,3.2078,4133.2,4133.1,0.7651]
[1760332474577,1.08771,4134.3,4134.2,0.7651]
[1760332474578,3.2078,4134.3,4134.2,0.7651]
[1760332474876,3.64287,4134.3,4134.2,0.5547]
[1760332475878,3.64287,4134.3,4134.2,0.3267]
[1760332476570,6.96644589,4134.3,4133.6,0.3267]
[1760332476776,0.43514,4133.7,4133.6,0.5547]
[1760332476977,0.43514,4133.7,4133.6,0.7651]
[1760332477874,0.43514,4133.7,4133.6,0.3267]
[1760332478074,0.43514,4133.7,4133.5,0.454]
[1760332479072,0.43514,4133.7,4133.6,0.3267]
[1760332479269,0.43514,4133.7,4133.0,0.1273]
[1760332479270,3.14566438,4133.6,4133.0,0.1273]
[1760332479481,0.43519,4133.2,4133.1,0.3267]
[1760332480880,0.43519,4133.2,4133.0,0.454]
[1760332481075,0.43521,4133.0,4132.1,3.5345]
[1760332481379,3.58909505,4133.0,4132.4,0.3267]
[1760332483074,3.58909505,4133.0,4132.5,0.1273]
[1760332485378,3.58909505,4133.0,4132.7,0.3388]
[1760332485579,3.58909505,4133.0,4132.9,0.34155113]
[1760332485780,3.58909505,4133.0,4132.9,0.00275113]
[1760332486782,3.58909505,4133.0,4132.9,0.56765113]
[1760332487281,3.15388505,4133.0,4132.9,0.56765113]
[1760332487474,3.2078,4133.2,4132.9,0.56765113]
[1760332487475,3.2078,4133.2,4133.1,0.7896]
[1760332488782,0.43516,4133.5,4133.3,0.43517]
[1760332488981,0.43516,4133.5,4133.4,0.7896]
[1760332491398,0.43516,4133.5,4133.4,0.3388]
[1760332491901,0.43516,4133.5,4133.4,0.5649]
[1760332492095,0.43516,4133.5,4133.4,0.7896]
[1760332492598,0.43514,4133.7,4133.4,0.4508]
[1760332492800,0.43514,4133.7,4133.6,0.7896]
[1760332493495,0.43514,4133.7,4133.6,0.3388]
[1760332493696,0.43514,4133.7,4133.5,0.1256]
[1760332494003,0.43514,4133.7,4133.1,0.3388]
[1760332494004,0.43519,4133.2,4133.1,0.3388]
[1760332494199,3.64299,4133.2,4133.1,0.3388]
[1760332494797,3.64299,4133.2,4133.1,0.5649]
[1760332495194,3.64299,4133.2,4133.1,0.3388]
[1760332496600,3.64299,4133.2,4133.1,0.5649]
[1760332496999,3.64299,4133.2,4133.1,0.7896]
[1760332497506,3.2078,4133.2,4133.1,0.7896]
[1760332498102,3.2078,4133.2,4133.0,0.5608]
[1760332498103,0.4352,4133.1,4133.0,0.1256]
[1760332498296,0.4352,4133.1,4132.9,0.00275113]
[1760332498799,0.4352,4133.1,4132.9,0.34155113]
[1760332500505,0.4352,4133.1,4133.0,0.1256]
[1760332500802,3.2078,4133.2,4133.1,0.3388]
[1760332501002,3.2078,4133.2,4133.0,0.1256]
[1760332501003,0.4352,4133.1,4133.0,0.4644]
[1760332501698,0.4352,4133.1,4132.9,0.00275113]
[1760332503007,3.21049141,4133.0,4132.9,0.00275113]
[1760332503202,3.82511584,4133.0,4132.9,0.00275113]
[1760332503399,0.4353,4132.1,4132.0,0.1273]
[1760332503603,3.6431,4132.1,4131.9,0.3388]
[1760332503803,3.6431,4132.1,4131.5,0.1256]
[1760332503804,0.43536,4131.6,4131.5,0.1256]
[1760332504303,0.43536,4131.6,4131.4,3.2078]
[1760332504507,0.4371101,4131.6,4131.4,3.20980986]
[1760332504805,3.15612052,4131.5,4131.4,0.00200986]
[1760332506994,3.15612052,4131.5,4131.4,0.34080986]
[1760332507200,3.2095501,4131.6,4131.5,0.6905]
[1760332509905,3.2095501,4131.6,4131.5,0.9152]
[1760332510109,0.0017501,4131.6,4131.5,0.9152]
[1760332510307,0.0017501,4131.6,4131.5,1.35057]
[1760332510499,3.2078,4132.1,4132.0,1.35051]
[1760332510701,3.2078,4132.1,4132.0,0.9152]
[1760332511407,3.21024924,4132.1,4132.0,0.9152]
[1760332511800,3.64554924,4132.1,4132.0,0.9152]
[1760332512007,3.64554924,4132.1,4132.0,0.6905]
[1760332512400,3.64554924,4132.1,4132.0,0.9152]
[1760332512605,3.64554924,4132.1,4132.0,0.1256]
[1760332512801,3.64554924,4132.1,4131.5,0.1256]
[1760332512802,0.43536,4131.6,4131.5,0.1256]
[1760332513305,0.43536,4131.6,4131.5,0.4644]
[1760332514306,6.3335136,4132.1,4131.5,0.3517]
[1760332514606,0.43536,4131.6,4131.5,0.6905]
[1760332514909,0.43536,4131.6,4131.4,0.00200986]
[1760332515409,0.43536,4131.6,4131.4,0.34080986]
[1760332516107,0.43536,4131.6,4131.4,0.00200986]
[1760332516302,3.64316,4131.6,4131.4,0.00200986]
[1760332517304,0.43546,4130.6,4130.5,0.3508]
[1760332517508,0.43546,4130.6,4130.5,0.4618]
[1760332517709,0.43546,4130.6,4130.5,0.687]
[1760332518409,3.2078,4131.0,4130.7,0.4497]
[1760332518410,0.43545,4130.8,4130.7,0.4497]
[1760332518610,3.2078,4131.0,4130.9,0.7859]
[1760332520100,3.2078,4131.5,4131.4,1.22128]
[1760332526613,3.64555924,4132.1,4132.0,0.3637]
[1760332526910,0.00244924,4132.1,4132.0,0.9244]
[1760332527309,3.2078,4133.2,4133.1,0.2252]
[1760332527611,3.2078,4133.9,4133.8,0.7859]
[1760332528312,3.21014517,4133.9,4133.8,0.78880639]
[1760332528518,0.00234517,4133.9,4133.8,0.78880639]
[1760332528814,3.2078,4134.7,4134.6,0.7859]
[1760332529011,3.2078,4134.7,4134.6,0.3362]
[1760332529920,3.21057686,4134.7,4134.6,0.3362]
[1760332530508,3.21057686,4134.7,4134.1,0.3362]
[1760332530717,0.43504,4134.6,4134.5,0.4747]
[1760332534415,0.43504,4134.6,4134.5,0.9244]
[1760332536418,3.21057686,4134.7,4134.6,0.7859]
[1760332537123,3.21057686,4134.7,4134.6,0.5614]
[1760332537715,3.21057686,4134.7,4134.6,0.3362]
[1760332537912,0.65014,4134.6,4134.5,0.1385]
[1760332538225,1.02971,4133.9,4133.8,0.00290639]
[1760332538422,4.23751,4133.9,4133.8,0.00290639]
[1760332538823,0.43525,4132.6,4132.5,3.3463]
[1760332539823,0.43525,4132.6,4132.5,3.34841652]
[1760332540020,0.43525,4132.6,4132.5,0.47681652]
[1760332543521,0.60415,4132.6,4132.5,0.00211652]
[1760332544422,1.02985,4132.6,4132.5,0.00211652]
[1760332545627,1.02985,4132.6,4132.5,0.32841652]
[1760332545828,0.43525,4132.6,4132.5,0.90341652]
[1760332546732,0.87575,4132.6,4132.5,0.69821652]
[1760332547734,0.43525,4132.6,4132.5,0.92631652]
[1760332548128,0.87135,4132.6,4132.5,0.92631652]
[1760332548832,0.43525,4132.6,4132.5,0.92631652]
[1760332549131,3.4225,4133.0,4132.9,0.5611]
[1760332549329,3.6439,4133.0,4132.9,0.5611]
[1760332550328,4.07911,4133.0,4132.9,0.5611]
[1760332551529,3.2078,4133.6,4132.9,1.22442]
[1760332551835,3.85765,4133.6,4133.5,0.9242]
[1760332552326,4.07905,4133.6,4133.5,0.135]
[1760332552528,0.4361,4132.6,4132.5,0.48111652]
[1760332552733,0.87135,4132.6,4132.5,0.69821652]
[1760332552924,0.87135,4132.6,4132.5,0.48111652]
[1760332553125,0.87135,4132.6,4132.5,0.34611652]
[1760332553434,0.87135,4132.6,4132.5,0.48111652]
[1760332554833,0.87135,4132.6,4132.5,0.69821652]
[1760332557639,0.2147,4132.6,4132.5,1.36156652]
[1760332559636,1.08796,4133.3,4132.5,1.36156652]
[1760332559637,4.07907,4133.4,4133.3,0.2171]
[1760332559841,4.07907,4133.4,4133.3,0.5611]
[1760332564144,4.24807,4133.4,4133.3,0.344]
[1760332564738,3.2078,4133.9,4133.8,0.2171]
[1760332564945,3.2078,4133.9,4133.8,1.22432]
[1760332565139,3.2078,4134.5,4134.4,0.7892]
[1760332565339,0.00277686,4134.7,4134.6,0.7892]
[1760332567448,0.4349,4136.0,4135.5,0.5802]
[1760332567651,0.6496,4136.0,4135.9,0.7892]
[1760332567849,0.2147,4136.0,4135.9,0.7892]
[1760332568450,0.21731749,4136.0,4135.9,0.79115047]
[1760332569550,0.60771749,4136.0,4135.9,0.34595047]
[1760332569849,0.60771749,4136.0,4135.9,0.00195047]
[1760332570549,0.69231749,4136.0,4135.9,0.00195047]
[1760332570852,0.435,4135.0,4134.9,0.344]
[1760332571145,3.2078,4135.4,4134.9,0.344]
[1760332571351,3.64276,4135.4,4135.1,0.344]
[1760332571652,0.43497,4135.3,4135.1,0.34689081]
[1760332571856,0.43497,4135.3,4135.2,0.344]
[1760332572348,3.2078,4135.4,4135.2,0.344]
[1760332572746,3.64276,4135.4,4135.2,0.344]
[1760332573246,3.64271,4135.9,4135.6,0.344]
[1760332573447,0.43492,4135.8,4135.6,0.344]
[1760332574543,0.43494,4135.6,4135.5,0.135]
[1760332575146,0.43494,4135.6,4135.5,0.479]
[1760332575452,0.43492,4135.8,4135.6,0.344]
[1760332576952,0.43492,4135.8,4135.7,0.762]
[1760332578248,0.66632,4135.8,4135.7,0.762]
[1760332580352,0.43492,4135.8,4135.7,0.762]
[1760332580544,3.64271,4135.9,4135.7,0.4432]
[1760332580744,3.64271,4135.9,4135.8,0.771]
[1760332581247,0.00261749,4136.0,4135.8,0.771]
[1760332581441,0.00261749,4136.0,4135.5,0.135]
[1760332581442,3.2078,4136.5,4136.4,1.20585]
[1760332581645,3.2078,4137.0,4136.9,0.4522]
[1760332581953,3.2078,4137.0,4136.9,0.771]
[1760332582452,3.20969903,4137.0,4136.9,0.771]
[1760332584654,0.43483,4136.6,4136.5,0.134]
[1760332584851,3.87588903,4137.0,4136.9,0.4522]
[1760332585052,0.87663,4136.6,4136.5,0.3601]
[1760332585253,0.66623,4136.6,4136.5,0.905]
[1760332585852,0.66623,4136.6,4136.0,0.5862]
[1760332585853,0.66628,4136.1,4136.0,0.5862]
[1760332586045,0.87668,4136.1,4136.0,0.5862]
[1760332586246,3.2078,4136.5,4136.0,0.5862]
[1760332586559,3.2078,4136.5,4136.4,0.771]
[1760332586857,3.64264,4136.5,4136.4,0.771]
[1760332588554,3.87404,4136.5,4136.4,0.771]
[1760332589457,3.64264,4136.5,4136.4,0.771]
[1760332590054,3.87404,4136.5,4136.4,0.771]
[1760332590555,0.4418,4135.8,4135.7,0.2261]
[1760332590754,0.4418,4135.8,4135.5,0.135]
[1760332590755,0.87674,4135.6,4135.5,0.4538]
[1760332590956,0.43498,4135.2,4135.1,0.32169081]
[1760332591162,0.60458,4135.2,4135.1,0.00289081]
[1760332591559,0.43498,4135.2,4135.1,0.00289081]
[1760332591766,0.43498,4135.2,4135.1,0.32169081]
[1760332592855,0.60458,4135.2,4135.1,8.1e-07]
[1760332593059,3.77944891,4135.2,4135.1,8.1e-07]
[1760332593255,0.60458,4135.2,4135.1,8.1e-07]
[1760332594560,3.72096626,4135.2,4135.1,8.1e-07]
[1760332594857,3.72096626,4135.2,4134.0,0.3188]
[1760332594858,0.43509,4134.1,4134.0,0.3188]
[1760332595063,0.43514,4133.7,4133.6,0.3188]
[1760332595659,0.43514,4133.7,4133.0,3.6606]
[1760332595660,0.4352,4133.1,4133.0,3.6606]
[1760332595964,0.4352,4133.1,4133.0,3.66369848]
[1760332596867,0.6048,4133.1,4133.0,0.00309848]
[1760332597061,3.3774,4133.4,4133.0,0.00309848]
[1760332597366,0.43518,4133.3,4133.2,0.3188]
[1760332598062,3.2078,4133.4,4133.2,0.3188]
[1760332598266,0.4352,4133.2,4133.1,0.3188]
[1760332599966,0.43519,4133.3,4133.0,0.13709848]
[1760332600259,0.43519,4133.3,4133.1,0.3188]
[1760332600464,3.2078,4133.4,4133.1,0.754]
[1760332600661,0.43779224,4133.7,4133.5,0.134]
[1760332600858,0.43779224,4133.7,4133.6,0.3188]
[1760332601054,0.00265224,4133.7,4133.6,0.3188]
[1760332602666,3.2078,4134.5,4134.0,0.134]
[1760332602871,3.2078,4135.0,4134.8,0.43501]
[1760332603171,3.2078,4135.0,4134.9,0.3188]
[1760332603866,0.43502,4134.8,4134.6,0.3188]
[1760332604061,3.64509675,4135.0,4134.6,0.3188]
[1760332604462,3.21009675,4135.0,4134.6,0.3188]
[1760332604862,3.21009675,4135.0,4134.5,0.134]
[1760332604863,3.21009675,4135.0,4134.8,0.43501]
[1760332605060,3.21009675,4135.0,4134.9,0.3152]
[1760332605664,3.21009675,4135.0,4134.1,3.2078]
[1760332605665,3.21009675,4135.0,4134.0,0.4492]
[1760332605867,0.43508,4134.2,4134.1,0.3152]
[1760332606064,3.2078,4134.5,4134.0,0.134]
[1760332606269,0.43509,4134.2,4134.1,0.3152]
[1760332606669,0.43507,4134.4,4134.1,0.3323]
[1760332607176,0.43507,4134.4,4134.0,0.5691]
[1760332607481,0.43508,4134.3,4134.0,0.5691]
[1760332607671,0.43509,4134.2,4134.1,0.3323]
[1760332607866,0.43509,4134.2,4133.5,0.4663]
[1760332607867,0.43514,4133.7,4133.5,0.4663]
[1760332608067,0.43514,4133.7,4133.6,0.3323]
[1760332608267,0.43518,4133.3,4133.1,0.3323]
[1760332608468,3.2078,4133.4,4133.1,0.3323]
[1760332608668,3.64297,4133.4,4133.1,0.3323]
[1760332608877,3.64297,4133.4,4133.0,0.57229848]
[1760332609071,3.64297,4133.4,4133.1,0.3323]
[1760332609579,3.64297,4133.4,4133.0,0.57229848]
[1760332609771,0.43519,4133.2,4133.0,0.13709848]
[1760332609972,0.43519,4133.2,4133.1,0.3323]
[1760332610363,3.64297,4133.4,4133.1,0.3323]
[1760332610570,3.64297,4133.4,4133.0,0.13709848]
[1760332611172,3.64297,4133.4,4133.1,0.3323]
[1760332611371,3.64297,4133.4,4133.0,0.13709848]
[1760332611772,0.4352,4133.1,4133.0,0.00309848]
[1760332611973,0.43519,4133.2,4133.0,0.13479848]
[1760332612487,0.1722,4133.1,4133.0,0.00309848]
[1760332613075,0.1722,4133.1,4131.8,3.2078]
[1760332613076,0.1722,4132.8,4131.8,3.2078]
[1760332613376,0.1722,4132.8,4131.0,0.1317]
[1760332613377,3.2078,4132.3,4131.3,3.2078]
[1760332613576,0.4354,4131.3,4131.0,0.464]
[1760332613776,0.4354,4131.3,4131.1,0.3323]
[1760332613975,0.43747297,4131.3,4131.1,0.33491528]
[1760332614281,0.43747297,4131.3,4131.1,0.00261528]
[1760332614282,3.38,4131.2,4131.1,0.00261528]
[1760332615487,3.2078,4131.2,4131.1,0.33491528]
[1760332615887,3.38,4131.2,4131.1,0.00261528]
[1760332618587,3.38,4131.2,4129.5,5.05478837]
[1760332618588,0.60773,4130.0,4129.8,0.3323]
[1760332618892,0.43551,4130.2,4129.8,0.3323]
[1760332619292,0.43552,4130.1,4129.8,0.3323]
[1760332619490,0.43553,4130.0,4129.8,0.33512965]
[1760332619885,0.43551,4130.2,4129.9,0.3323]
[1760332620086,0.43551,4130.2,4129.8,0.00282965]
[1760332620686,0.4355,4130.3,4129.8,0.00282965]
[1760332620888,3.18005017,4130.5,4130.0,0.1317]
[1760332621092,0.43548,4130.5,4130.1,0.3323]
[1760332621494,0.43548,4130.5,4129.8,0.00282965]
[1760332621495,0.1722,4129.9,4129.8,0.00282965]
[1760332621789,3.30699019,4129.9,4129.8,0.00282965]
[1760332625893,3.2078,4130.1,4129.9,0.3323]
[1760332626196,0.1722,4130.0,4129.8,0.00282965]
[1760332626394,3.2078,4130.1,4129.8,0.00282965]
[1760332626599,3.2078,4130.1,4129.9,0.3323]
[1760332626792,0.1722,4129.9,4129.8,0.00282965]
[1760332627294,0.4356,4129.4,4128.6,3.5401]
[1760332627495,3.2078,4129.3,4129.0,0.3323]
[1760332627794,3.2078,4129.3,4129.1,0.3323]
[1760332627991,0.1722,4129.2,4128.8,0.43565]
[1760332628392,0.1722,4129.2,4129.0,0.43562]
[1760332628597,0.1722,4129.2,4129.0,0.76792]
[1760332629198,3.2078,4129.3,4129.2,0.76791]
[1760332629501,3.2078,4129.3,4129.2,0.3323]
[1760332629891,0.1722,4129.2,4128.8,0.33457839]
[1760332630091,0.60782,4129.1,4128.9,0.3323]
[1760332630493,3.2078,4129.3,4128.8,0.00227839]
[1760332630494,3.6434,4129.3,4129.0,0.1317]
[1760332630690,3.2078,4129.3,4129.1,0.43561]
[1760332630899,3.2078,4129.3,4129.2,0.3323]
[1760332631702,0.43561,4129.2,4129.0,0.1317]
[1760332631903,0.60782,4129.1,4128.8,0.00227839]
[1760332632093,0.60782,4129.1,4128.9,0.3323]
[1760332632294,0.1722,4128.9,4127.6,3.2078]
[1760332632599,0.4357,4128.4,4127.9,0.43574]
[1760332632800,0.60571,4128.3,4127.9,0.43574]
[1760332632997,0.17,4128.7,4128.0,0.1317]
[1760332633406,0.17,4128.7,4128.0,0.00241322]
[1760332633407,0.17,4128.1,4128.0,0.00241322]
[1760332633697,3.73362803,4128.1,4128.0,0.00241322]
[1760332635198,0.60335,4127.9,4127.0,3.2078]
[1760332635603,0.43583,4127.1,4127.0,3.2078]
[1760332635904,0.60345,4127.0,4126.7,0.3323]
[1760332636100,0.1676,4127.0,4126.7,0.33517282]
[1760332636300,3.2078,4127.5,4127.4,0.3323]
[1760332636601,3.2078,4127.5,4127.3,0.4358]
[1760332636802,3.2078,4127.5,4127.4,0.3435]
[1760332638602,0.43583,4127.2,4127.0,0.3435]
[1760332638799,0.43583,4127.2,4126.9,3.2078]
[1760332638800,0.1674,4127.1,4126.9,3.2078]
[1760332639000,0.1674,4127.1,4126.7,0.00287282]
[1760332639001,0.1674,4127.0,4126.7,0.00287282]
[1760332639201,0.1674,4127.0,4126.7,0.34637282]
[1760332639703,0.60325,4127.0,4126.7,0.78224282]
[1760332639899,3.2078,4127.5,4126.7,0.00287282]
[1760332640105,3.2078,4127.5,4127.1,0.43582]
[1760332640402,3.81099,4127.5,4127.2,0.3435]
[1760332640805,0.43581,4127.4,4127.2,0.3435]
[1760332641109,0.43581,4127.3,4127.0,0.4747]
[1760332641297,0.1674,4127.2,4126.8,0.77935]
[1760332641500,0.1674,4126.8,4126.7,0.00287282]
[1760332641803,0.43586,4126.9,4126.7,0.34637282]
[1760332641994,0.1674,4126.8,4126.7,0.00287282]
[1760332642197,0.43586,4126.9,4126.7,0.00287282]
[1760332642405,0.43586,4126.9,4126.7,0.34637282]
[1760332642603,0.43586,4126.9,4126.7,0.00287282]
[1760332642604,3.2957733,4126.8,4126.7,0.00287282]
[1760332645407,3.90707746,4126.8,4126.7,0.00287282]
[1760332649213,4.13817746,4126.8,4126.7,0.00287282]
[1760332649505,4.35767746,4126.8,4126.7,0.00287282]
[1760332650208,4.35767746,4126.8,4125.9,3.2078]
[1760332650209,0.2311,4126.0,4125.9,3.2078]
[1760332650511,3.2078,4126.9,4126.8,0.7962]
[1760332650709,3.64359,4127.5,4127.1,0.43583]
[1760332650904,0.61234749,4127.4,4127.3,0.77931]
[1760332651100,3.2078,4128.0,4127.5,0.1312]
[1760332651303,3.2078,4128.5,4128.1,0.3435]
[1760332651503,0.1645,4128.3,4128.1,0.43572]
[1760332651708,0.0018161,4128.7,4128.6,0.3435]
[1760332652206,3.2078,4129.5,4129.4,0.43559]
[1760332652403,3.17319297,4129.5,4129.4,0.77909]
[1760332652710,3.2078,4131.1,4130.6,0.77895]
[1760332652906,3.2078,4131.1,4130.6,0.3435]
[1760332652907,0.60951743,4131.0,4130.6,0.3435]
[1760332653109,3.2078,4131.1,4130.5,0.1312]
[1760332653308,3.2078,4131.1,4130.9,0.77893]
[1760332653309,0.00284591,4131.0,4130.9,0.77893]
[1760332653503,0.00284591,4131.0,4130.9,5.70201837]
[1760332653808,3.2078,4132.6,4132.0,0.1312]
[1760332654008,3.2078,4132.6,4131.5,3.77436]
[1760332654216,0.1663,4132.0,4131.0,3.6825]
[1760332654512,0.69599369,4132.5,4130.5,3.6825]
[1760332654513,0.1663,4131.2,4130.5,3.6825]
[1760332654710,0.16838722,4131.2,4130.5,3.6825]
[1760332655012,0.16838722,4131.2,4130.0,0.1312]
[1760332655013,0.1663,4130.8,4130.1,0.3435]
[1760332655510,3.64323,4130.9,4130.0,0.56672]
[1760332655710,3.3741,4130.9,4130.0,0.56672]
[1760332655903,3.2078,4130.9,4130.7,0.3435]
[1760332656312,3.2078,4130.9,4130.0,0.1312]
[1760332656313,0.43544,4130.8,4130.2,0.3435]
[1760332656812,0.43544,4130.8,4130.7,0.3435]
[1760332657214,3.2078,4130.9,4130.5,0.56667]
[1760332657409,3.2078,4130.9,4130.8,0.77894]
[1760332657608,0.00208722,4131.2,4131.1,0.3435]
[1760332658313,0.43544,4130.9,4130.6,0.00276453]
[1760332658609,0.60175,4130.7,4130.6,0.00276453]
[1760332658917,0.43545,4130.7,4130.6,0.00276453]
[1760332659111,0.60175,4130.7,4130.6,0.00276453]
[1760332659417,0.43555,4129.8,4129.7,0.3435]
[1760332659610,0.43562,4129.1,4129.0,0.4747]
[1760332660011,0.43562,4129.1,4129.0,0.3435]
[1760332660207,3.2078,4129.5,4128.6,0.3435]
[1760332660208,0.43567,4128.7,4128.6,0.3435]
[1760332660516,0.43574,4128.0,4127.9,0.3435]
[1760332660811,3.71555383,4128.7,4127.6,3.2078]